Cogmind - Beta 17 @@@ ROGUE MODE // 2026.06.27 @ 22:21:56 Player: THN-L0C Result: Self-destructed Performance ------------- Evolutions (1) 500 Regions Visited (5) 1000 Robots Destroyed (16) 80 Value Destroyed (216) 216 Prototype IDs (23) 460 Alien Tech Used (0) 0 Bonus (300) 300 TOTAL SCORE: 2556 Bonus ------- Aligned with FarCom 300 Cogmind --------- Core Integrity 115/400 Matter 300/300 Energy 100/100 System Corruption 5% Temperature Cool (0) Movement Core (2450) Ox48 Location -9/Exiles Parts ------- > --- POWER (1) -------- (None) > --- PROPULSION (2) --- (None) > --- UTILITY (4) ------ Small Storage Unit Cargo Storage Unit Terrain Scan Processor > --- WEAPON (2) ------- (None) > --- INVENTORY (30) --- High-capacity Battery (250) Seismic Detector Decoy Drone Bay Army-in-a-Box (30/30) Slug Cannon Rocket Launcher Datajack Mace Peak State ------------ > --- POWER ------------ Light Nuclear Core > --- PROPULSION ------- Aluminum Leg Aluminum Leg > --- UTILITY ---------- Small Storage Unit Cargo Storage Unit Terrain Scan Processor > --- WEAPON ----------- Medium Laser Medium Laser > --- INVENTORY -------- High-capacity Battery Decoy Drone Bay Army-in-a-Box Slug Cannon Rocket Launcher Datajack Mace [Rating: 19] Favorites ----------- Power Ion Engine Engine Ion Engine Power Core Light Nuclear Core Propulsion Aluminum Leg Treads Light Treads Leg Aluminum Leg Wheel Compact Wheel Utility Small Storage Unit Device Seismic Detector Storage Small Storage Unit Processor Terrain Scan Processor Weapon Medium Laser Energy Gun Medium Laser Launcher Mini Grenade Launcher Special Weapon Mining Laser Build | -11 -10 -10 -9 -9 -9 ------- Run | Yrd Mat Min Mat Min Exi Slots Evolved 2 | . . . 2 . . Power . | . . . . . . Propulsion . | . . . . . . Utility 2 | . . . 2 . . Weapon . | . . . . . . Parts Attached 22 | 10 1 2 2 6 1 Power 3 | 1 . . . 2 . Engine 2 | 1 . . . 1 . Core 1 | . . . . 1 . Reactor . | . . . . . . Propulsion 8 | 4 . 2 . 2 . Treads 2 | 2 . . . . . Leg 3 | . . 1 . 2 . Wheel 3 | 2 . 1 . . . Hover . | . . . . . . Flight . | . . . . . . Utility 5 | 2 . . 2 . 1 Device 1 | 1 . . . . . Storage 3 | 1 . . 1 . 1 Processor 1 | . . . 1 . . Hackware . | . . . . . . Protection . | . . . . . . Artifact . | . . . . . . Weapon 6 | 3 1 . . 2 . Energy Gun 3 | 3 . . . . . Energy Cannon . | . . . . . . Ballistic Gun . | . . . . . . Ballistic Cannon . | . . . . . . Launcher 2 | . . . . 2 . Special Weapon 1 | . 1 . . . . Impact Weapon . | . . . . . . Slashing Weapon . | . . . . . . Piercing Weapon . | . . . . . . Special Melee Weapon . | . . . . . . Unidentified Prototypes . | . . . . . . Parts Lost 7 | . . . 2 . 5 Power 2 | . . . 1 . 1 Propulsion 2 | . . . . . 2 Utility . | . . . . . . Weapon 3 | . . . 1 . 2 Highest Loss Streak 4 | . . . 2 . 4 To Critical Strikes . | . . . . . . Average Backups 6 | 3 7 6 6 5 7 Power . | . 1 1 1 . . Propulsion . | 1 2 1 1 . . Utility 2 | . 1 2 2 2 3 Weapon 2 | . 2 1 1 2 3 Tool/Special . | . . . . . . Unused Backups 8 | . . 2 . 1 5 Power . | . . . . . . Propulsion . | . . . . . . Utility 3 | . . 1 . . 2 Weapon 4 | . . 1 . 1 2 Tool/Special 1 | . . . . . 1 Average Slot Usage (%) 95 | . 100 100 87 97 89 Engine 6 | . 14 14 10 3 . Core 5 | . . . . 7 10 Treads 3 | . 14 6 . . . Leg 14 | . . 7 11 19 21 Wheel 6 | . 14 14 11 2 . Device 10 | . 14 14 11 11 3 Storage 18 | . 14 14 18 22 22 Processor 6 | . . . 7 11 11 Energy Gun 21 | . 22 28 17 19 20 Peak Build Rating 19 | 7 8 9 12 15 19 Average Rating 11 | 5 7 8 10 13 17 On Entrance 8 | . 7 8 9 10 14 Avg Prop Armor Cover (%) 10 | 3 7 12 10 12 . Naked Turns . | . . . . . . Heaviest Build 154 | 15 15 15 19 19 154 Greatest Support 40 | 40 20 16 16 20 20 Greatest Overweight (x) 15 | . . . 1 . 15 Average Overweight (x) . | . . . . . 2 Largest Inventory Capacity 30 | 8 8 8 8 8 30 Average Capacity 11 | 7 8 8 8 8 23 Most Carried 14 | 7 8 8 8 8 14 Average Carried 8 | 3 7 7 8 7 12 Final Capacity 30 | 8 8 8 8 8 30 Final Carried 14 | 7 8 8 8 8 14 Class Distribution -------------------- 83% | Mutant 16% | Hauler-Mutant Dominant Class ---------------- Mutant | -10/Materials Mutant | -10/Mines Mutant | -9/Materials Mutant | -9/Mines Hauler-Mutant | -9/Exiles Resources | -11 -10 -10 -9 -9 -9 ----------- Run | Yrd Mat Min Mat Min Exi Matter Collected 482 | 257 44 35 10 136 . Remotely . | . . . . . . Salvage Created 332 | 43 44 31 55 159 . Parts 29 | 11 5 2 3 8 . Haulers Intercepted 1 | . . . 1 . . Recyclers Shooed 2 | 1 . . 1 . . Parts Field Recycled . | . . . . . . Retrieved Matter . | . . . . . . Parts Self-Destructed . | . . . . . . Prevented . | . . . . . . Parts Restored . | . . . . . . Kills | -11 -10 -10 -9 -9 -9 ------- Run | Yrd Mat Min Mat Min Exi Combat Hostiles Destroyed 10 | . 3 . . 7 . Guns 6 | . 3 . . 3 . AOE 4 | . . . . 4 . Classes Destroyed 5 | 2 1 . 1 1 . Worker 1 | 1 . . . . . Tunneler 4 | 2 . 2 . . . Hauler 1 | . . . 1 . . Swarmer 7 | . 3 . . 4 . Grunt 3 | . . . . 3 . Best Kill Streak 4 | 1 3 2 1 4 . Combat Bots Only 4 | . 3 . . 4 . Max Kills in Single Turn 4 | 1 1 1 1 4 . Gunslinging . | . . . . . . Exploded 4 | . . . . 4 . Melee . | . . . . . . Uniques/NPCs Destroyed . | . . . . . . Combat | -11 -10 -10 -9 -9 -9 -------- Run | Yrd Mat Min Mat Min Exi Hostile Shots Fired 168 | . 22 2 58 10 76 Missed 59 | . 8 2 17 3 29 Hits 109 | . 14 . 41 7 47 Projectile 109 | . 14 . 41 7 47 Critical Strikes 2 | . . . . . 2 Damage Taken 1171 | . 109 . 335 82 645 Core 316 | . 31 . 145 8 132 Absorbed by Shields . | . . . . . . Core Remaining (%) 93 | 100 . 87 . . . Volleys Fired 34 | 7 10 2 8 7 . Largest 2 | 2 2 2 2 2 . Hottest 100 | 100 100 100 100 100 . Shots Fired 59 | 14 16 4 12 13 . Gun 55 | 14 15 4 10 12 . Cannon . | . . . . . . Launcher 1 | . . . . 1 . Special 3 | . 1 . 2 . . Kinetic . | . . . . . . Thermal 58 | 14 16 4 12 12 . Explosive 1 | . . . . 1 . Electromagnetic . | . . . . . . Robot Hit Streak 9 | 6 6 2 3 9 . Robot Miss Streak 4 | 1 3 . 3 4 . Penetration Max . | . . . . . . Secondary Targets . | . . . . . . Shots Hit Robots 32 | 9 7 2 4 10 . Core Hits 23 | 3 3 2 3 12 . Critical Kills . | . . . . . . Critical Parts Destroyed . | . . . . . . Critical Strikes . | . . . . . . Melee Attacks . | . . . . . . Impact . | . . . . . . Slashing . | . . . . . . Piercing . | . . . . . . Sneak Attacks . | . . . . . . Combat Hostiles . | . . . . . . Follow-up Attacks . | . . . . . . Damage Inflicted 538 | 111 89 25 60 253 . Guns 407 | 111 89 25 60 122 . Cannons . | . . . . . . Explosions 131 | . . . . 131 . Melee . | . . . . . . Ramming . | . . . . . . Kinetic . | . . . . . . Thermal 407 | 111 89 25 60 122 . Explosive 131 | . . . . 131 . Electromagnetic . | . . . . . . Impact . | . . . . . . Slashing . | . . . . . . Piercing . | . . . . . . Highest Corruption 5 | . . . 3 3 5 Average Corruption 3 | . . . 2 3 3 Corruption Purged . | . . . . . . Corruption Blocked . | . . . . . . Effects 19 | . . . . 8 11 Message Errors 8 | . . . . 4 4 Matter Fused 2 | . . . . 2 . Heat Flow Errors 2 | . . . . . 2 Energy Discharges 1 | . . . . . 1 Parts Fused 1 | . . . . 1 . Data Loss (minor) 3 | . . . . 1 2 Data Loss (major) 2 | . . . . . 2 Overload Shots . | . . . . . . Overflow Damage 40 | . . . . 40 . Projectiles . | . . . . . . Explosions 40 | . . . . 40 . Melee . | . . . . . . Knockbacks . | . . . . . . Impact . | . . . . . . Kinetic . | . . . . . . Secondary . | . . . . . . Self-Inflicted Damage 8 | . . . . 8 . Shots 1 | . . . . 1 . Rammed 1 | 1 . . . . . Targets Rammed 1 | 1 . . . . . Kicked . | . . . . . . Crushed . | . . . . . . Highest Temperature 206 | 195 176 78 67 108 206 Average Temperature 58 | 77 63 43 21 46 97 Received Heat Transfer 153 | . . . 9 30 114 Siege Activations . | . . . . . . Martial Activations . | . . . . . . Shielding Activations . | . . . . . . Robots Disrupted . | . . . . . . Combat Hostiles . | . . . . . . Robots Corrupted . | . . . . . . Combat Hostiles . | . . . . . . Parts Fried . | . . . . . . Impact Corruptions . | . . . . . . Robots Melted . | . . . . . . Combat Hostiles . | . . . . . . Parts Melted 1 | 1 . . . . . Heat Transferred 1221 | 333 259 74 185 370 . Parts Sabotaged . | . . . . . . Parts Stolen . | . . . . . . Parts Stripped . | . . . . . . Power Chain Reactions . | . . . . . . Alert | -11 -10 -10 -9 -9 -9 ------- Run | Yrd Mat Min Mat Min Exi Maximum Alert Level . | . . . . . . Low Security (%) 100 | 100 100 100 100 100 . Level 1 . | . . . . . . Level 2 . | . . . . . . Level 3 . | . . . . . . Level 4 . | . . . . . . Level 5 . | . . . . . . High Security . | . . . . . . Max Security . | . . . . . . Peak Influence 99 | 5 61 10 54 99 . Initial 7 | . . 7 . 1 . Average 9 | . 16 . 20 12 . Influence Increases 357 | 15 72 10 91 169 . Destroy 0b10 Robot/C 200 | . 60 . . 140 . Destroy 0b10 Robot/NC 30 | 15 . 10 5 . . Destroy Leader 32 | . 10 . 2 20 . Successful Hack 7 | . . . 7 . . Destroy Structure 13 | . 2 . 2 9 . Partial Spotted 15 | . . . 15 . . Lose Combat Pursuer 60 | . . . 60 . . Influence Decreases 357 | 15 51 31 86 99 75 Entered New Map 93 | . . 14 . 4 75 Time Decay 254 | 15 51 17 76 95 . Lost Part 10 | . . . 10 . . Squads Dispatched 3 | . 1 . 1 1 . Investigation . | . . . . . . Extermination . | . . . . . . Reinforcement 2 | . 1 . 1 . . Assault 1 | . . . . 1 . Garrison . | . . . . . . Intercept . | . . . . . . Searches Triggered . | . . . . . . Construction Impeded . | . . . . . . Haulers Reinforced . | . . . . . . Active Scanning Responses . | . . . . . . Cargo Convoy Interrupts . | . . . . . . Stealth | -11 -10 -10 -9 -9 -9 --------- Run | Yrd Mat Min Mat Min Exi Distress Signals 3 | . 2 . 1 . . Communications Jammed . | . . . . . . Distress Signals . | . . . . . . Times Spotted 40 | . 10 2 10 7 11 Peak Tracking Total 6 | . 6 2 5 4 6 Tactical Retreats 4 | . . 2 2 . . Traps | -11 -10 -10 -9 -9 -9 ------- Run | Yrd Mat Min Mat Min Exi Traps Triggered 2 | . . . 2 . . Indirectly . | . . . . . . Trap Hack Attempts . | . . . . . . Triggered . | . . . . . . Disarmed . | . . . . . . Reprogrammed . | . . . . . . Reused . | . . . . . . Traps Extracted . | . . . . . . Installed . | . . . . . . Triggered . | . . . . . . Machines | -11 -10 -10 -9 -9 -9 ---------- Run | Yrd Mat Min Mat Min Exi Machines Disabled . | . . . . . . Max in Single Turn . | . . . . . . Machines Repaired . | . . . . . . Machines Dismantled . | . . . . . . Machines Sabotaged . | . . . . . . Overloaded Fab Kills . | . . . . . . Hacking | -11 -10 -10 -9 -9 -9 --------- Run | Yrd Mat Min Mat Min Exi Machines Accessed 6 | . 1 1 3 . 1 Terminals 4 | . 1 . 3 . . Fabricators . | . . . . . . Repair Stations . | . . . . . . Recycling Units . | . . . . . . Scanalyzers . | . . . . . . Garrison Access . | . . . . . . Total Hacks 13 | . 2 1 9 . 1 Successful 4 | . 1 1 1 . 1 Failed 9 | . 1 . 8 . . Catastrophic 3 | . 1 . 2 . . Database Lockouts . | . . . . . . Manual 5 | . 2 . 2 . 1 Terminals 11 | . 2 . 9 . . Fabricators . | . . . . . . Repair Stations . | . . . . . . Recycling Units . | . . . . . . Scanalyzers . | . . . . . . Garrison Access . | . . . . . . Terminal Hacks 3 | . . 1 1 . 1 Open Door 1 | . . 1 . . . Branch Access Points 1 | . . . 1 . . Proto ID Catalog 1 | . . . . . 1 Fabricator Hacks . | . . . . . . Repair Station Hacks . | . . . . . . Recycling Unit Hacks . | . . . . . . Scanalyzer . | . . . . . . Garrison Access Hacks . | . . . . . . Unauthorized Hacks 1 | . 1 . . . . Terminals 1 | . 1 . . . . Disrupt 1 | . 1 . . . . Fabricators . | . . . . . . Repair Stations . | . . . . . . Recycling Units . | . . . . . . Scanalyzers . | . . . . . . Garrison Access . | . . . . . . Data Cores Recovered . | . . . . . . Used . | . . . . . . Hacking Detections 4 | . 1 . 3 . . Full Trace Events . | . . . . . . Feedback Events . | . . . . . . Feedback Blocked . | . . . . . . Robot Schematics Acquired . | . . . . . . Robots Built . | . . . . . . Authchips . | . . . . . . Time . | . . . . . . Total Robot Build Rating . | . . . . . . Part Schematics Acquired . | . . . . . . Parts Built . | . . . . . . Authchips . | . . . . . . Time . | . . . . . . Total Part Build Rating . | . . . . . . Part Studies Acquired . | . . . . . . Parts Repaired . | . . . . . . Time . | . . . . . . Parts Recycled . | . . . . . . Recycled Matter . | . . . . . . Retrieved Matter . | . . . . . . Retrieved Components . | . . . . . . Parts Scanalyzed . | . . . . . . Part Schematics Acquired . | . . . . . . Parts Damaged . | . . . . . . Bothacking | -11 -10 -10 -9 -9 -9 ------------ Run | Yrd Mat Min Mat Min Exi Used RIF Installer . | . . . . . . Robots Hacked . | . . . . . . Non-combat . | . . . . . . Combat . | . . . . . . Robot Hacks Applied . | . . . . . . Relay Couplers Released . | . . . . . . Fabnet Peak Effective % . | . . . . . . Robots Rewired . | . . . . . . Allies Hacked . | . . . . . . Hacks Repelled . | . . . . . . Allies | -11 -10 -10 -9 -9 -9 -------- Run | Yrd Mat Min Mat Min Exi Total Allies 1 | . . . . 1 . Largest Group 1 | . . . . 1 . Highest-Rated Group 31 | . . . . 31 . Highest-Rated Ally 31 | . . . . 31 . Total Orders . | . . . . . . Ally Attacks 3 | . . . . 3 . Total Damage 63 | . . . . 63 . Kills . | . . . . . . Allies Corrupted . | . . . . . . Allies Melted . | . . . . . . Intel | -11 -10 -10 -9 -9 -9 ------- Run | Yrd Mat Min Mat Min Exi Active Infowar (turns) 1725 | 41 232 454 207 642 149 Seismic 1725 | 41 232 454 207 642 149 Robot Analysis Total . | . . . . . . Derelict Logs Recovered 1 | . . . . 1 . Drone Launches . | . . . . . . Drone Recoveries . | . . . . . . Exploration | -11 -10 -10 -9 -9 -9 ------------- Run | Yrd Mat Min Mat Min Exi Turns Passed 2174 | 127 232 454 207 642 512 Spaces Moved 1343 | 50 147 277 166 522 181 Core 2 | 2 . . . . . Treads 128 | 48 80 . . . . Legs 557 | . . . . 376 181 Wheels 656 | . 67 277 166 146 . Hover . | . . . . . . Flight . | . . . . . . Fastest Speed 50 | 50 100 100 100 100 120 Average Speed 136 | 155 132 100 107 114 280 Slowest Speed 1170 | 160 160 100 115 120 1170 Overloaded Moves . | . . . . . . Propulsion Burnouts . | . . . . . . Robots Hopped . | . . . . . . Potential Cave-ins . | . . . . . . Cave-ins Triggered . | . . . . . . Exploration Rate (%) 41 | 3 27 46 30 91 54 Regions Visited 5 Branch Regions 3 Pre-discovered Areas . | . . . . . . Known Exits Taken 1 | . . . 1 . . Unknown Exits Taken 4 | 1 1 1 . 1 . Scrap Searched 2 | . . 1 . 1 . Spaces Dug 14 | . 1 . 2 11 . Terrain Destroyed 14 | . 1 . 2 11 . Melee . | . . . . . . Projectile 3 | . 1 . 2 . . AOE 11 | . . . . 11 . Terrain Rammed . | . . . . . . Walls Destroyed . | . . . . . . Machines Disabled . | . . . . . . Actions | -11 -10 -10 -9 -9 -9 --------- Run | Yrd Mat Min Mat Min Exi Total 1614 | 79 166 451 176 555 187 Wait 179 | 5 2 165 . 7 . Move 1338 | 49 146 276 165 521 181 Hop . | . . . . . . Pick Up 19 | 6 3 2 . 5 3 Fast Attach 10 | 7 . . 2 1 . Attach 2 | . . . . 1 1 Detach . | . . . . . . Swap 16 | 4 2 2 1 7 . Drop 15 | . 3 4 . 6 2 Fire 34 | 7 10 2 8 7 . Melee . | . . . . . . Ram . | . . . . . . Kick . | . . . . . . Crush 1 | 1 . . . . . Escape Stasis . | . . . . . . Rewire . | . . . . . . Trap . | . . . . . . Miscellaneous . | . . . . . . Route ------- -11/Scrapyard -10/Materials -10/Mines -9/Materials -9/Mines (discovered 2 exits: [*Mat] / *Exi) -9/Exiles History --------- Turn | Location | Event 29 | -11/Scrapyard | Discovered new exit (range 15) 128 | -11/Scrapyard | Entered Materials 303 | -10/Materials | Build established: Mutant 321 | -10/Materials | Discovered new exit (range 10) 360 | -10/Materials | Entered Mines 366 | -10/Mines | Assembled infested the area 371 | -10/Mines | Assisted by a Guerilla fighting off Assembled 385 | -10/Mines | Found the Drone Emporium 391 | -10/Mines | Found Prototype Device 483 | -10/Mines | Discovered new exit (range 5) 814 | -10/Mines | Entered Materials 814 | -9/Materials | Evolved 2 slots: Utility x2 878 | -9/Materials | Identified exit to Mines 1021 | -9/Materials | Entered Mines 1065 | -9/Mines | Met a Derelict bent on vengeance 1093 | -9/Mines | Discovered new exit (range 16) 1322 | -9/Mines | Learned Materials emergency access door positions 1358 | -9/Mines | Met a Derelict testing a Signal Generator 1389 | -9/Mines | Received a Rocket Launcher from a helpful Derelict 1436 | -9/Mines | A weapon hastily lodged in a ceiling crevice suddenly fell to the ground 1657 | -9/Mines | Deemed a non-threat by the Exiles lab entrance 1658 | -9/Mines | Discovered new exit (range 5) 1663 | -9/Mines | Entered Exiles 1693 | -9/Exiles | Met 8R-AWN 1713 | -9/Exiles | Met EX-HEX 1749 | -9/Exiles | Met EX-BIN 1768 | -9/Exiles | Aligned with FarCom system 1769 | -9/Exiles | Given EX-Vault access code 1799 | -9/Exiles | Opened EX-Vault 1820 | -9/Exiles | Found Army-in-a-Box 1944 | -9/Exiles | Warned to stay clear of 0b10 Research branches 2000 | -9/Exiles | Exiles lab attacked by MAIN.C 2118 | -9/Exiles | Build established: Hauler-Mutant 2134 | -9/Exiles | Core integrity fell below 50% 2175 | -9/Exiles | Self-destructed Last Messages --------------- 02140_ G-34 Mercenary knocked back. 02144_ Slug penetrates Machine. 02144_ Machine disabled. 02144_ G-34 Mercenary destroyed. 02146_ H-55 Commando knocked back. 02148_ H-55 Commando suffers critical hit (Blast). 02148_ H-55 Commando destroyed. 02150_ Machine disabled. 02150_ G-34 Mercenary destroyed. 02156_ H-55 Commando knocked back. 02160_ R4B